bitfinex-derivatives/quotes_ETHF0:USTF0_20250817
["timestamp","ask_amount","ask_price","bid_price","bid_amount"]
[1755456782219,1.52753167,4509.2,4509.1,22.1234]
[1755456782920,1.52753167,4509.2,4509.1,22.1224]
[1755456783619,1.52753167,4509.2,4509.1,1.4214]
[1755456783819,1.52753167,4509.2,4509.1,22.1064]
[1755456784616,1.52743559,4509.2,4509.1,22.1064]
[1755456785018,0.72753559,4509.2,4509.1,22.1064]
[1755456785214,0.47203559,4509.2,4509.1,22.1064]
[1755456785417,0.29893559,4509.2,4509.1,22.0954]
[1755456785721,0.1,4509.2,4509.1,22.0954]
[1755456786524,0.3398,4509.2,4509.1,22.0954]
[1755456786724,0.5129,4509.2,4509.1,22.0954]
[1755456786916,0.1,4509.2,4509.1,22.0954]
[1755456792731,0.3398,4509.2,4509.1,22.0954]
[1755456796634,0.7316,4509.2,4509.1,22.0954]
[1755456797228,1.1602,4509.2,4509.1,22.0954]
[1755456800234,0.2535,4508.8,4508.7,0.3907]
[1755456800441,1.35659389,4508.7,4508.3,31.936]
[1755456800739,1.3604,4508.5,4508.4,20.8491]
[1755456801640,1.3604,4508.5,4508.4,21.0213]
[1755456803849,1.2125,4508.5,4508.4,21.2652]
[1755456804041,1.2125,4508.5,4508.4,21.9157]
[1755456804638,1.2125,4508.5,4508.4,21.6559]
[1755456804847,1.3604,4508.5,4508.4,21.0213]
[1755456805041,1.3604,4508.5,4508.4,0.2471]
[1755456805241,1.3604,4508.5,4508.4,20.8281]
[1755456806546,1.3604,4508.5,4508.4,21.391]
[1755456806944,1.3604,4508.5,4508.4,21.6349]
[1755456807745,1.2125,4509.0,4508.9,0.4161]
[1755456807939,1.2125,4509.0,4508.9,21.6249]
[1755456808441,1.2125,4509.0,4508.9,21.8847]
[1755456808744,1.2125,4509.0,4508.9,22.0437]
[1755456810845,1.3604,4509.0,4508.3,0.44335]
[1755456811040,0.5825,4508.8,4508.7,0.2471]
[1755456811242,1.3604,4508.8,4508.7,20.555]
[1755456811543,1.3604,4508.8,4508.7,20.7272]
[1755456811742,1.2125,4508.8,4508.7,21.7806]
[1755456811947,1.2125,4508.8,4508.7,22.0277]
[1755456814348,1.2125,4508.8,4508.7,21.7679]
[1755456815154,1.2125,4508.8,4508.7,22.0277]
[1755456819853,1.2125,4508.8,4508.7,20.9743]
[1755456820055,1.3604,4508.8,4508.7,0.2471]
[1755456820250,1.3604,4508.8,4508.7,20.7581]
[1755456820455,1.3604,4508.8,4508.7,20.511]
[1755456820748,1.3604,4508.8,4508.7,20.7581]
[1755456821751,1.1025,4508.3,4508.2,0.2471]
[1755456821948,1.1025,4508.3,4508.2,20.7571]
[1755456821949,1.3604,4508.3,4508.2,20.7571]
[1755456823163,1.3604,4508.3,4508.2,20.9293]
[1755456826061,1.2125,4508.3,4508.2,20.7571]
[1755456826265,1.3604,4507.7,4507.6,0.2471]
[1755456826468,1.3604,4507.7,4507.6,0.4193]
[1755456826762,1.2125,4507.7,4507.6,1.0539]
[1755456829366,1.2125,4507.7,4507.6,1.3133]
[1755456830469,1.3605,4507.7,4507.6,0.6632]
[1755456831066,1.3605,4507.7,4507.6,1.0217]
[1755456831367,1.2125,4507.7,4507.6,1.4473]
[1755456834173,0.4249,4507.7,4507.6,0.2594]
[1755456834468,1.1651,4507.6,4507.5,0.8406]
[1755456834670,1.1651,4507.6,4507.5,1.4433]
[1755456837672,1.1651,4507.6,4507.5,0.6592]
[1755456837968,1.1651,4507.6,4507.5,0.4151]
[1755456838165,1.1651,4507.6,4506.7,0.0221]
[1755456838369,0.6513,4506.9,4506.8,0.8254]
[1755456838571,1.1651,4506.9,4506.8,21.6559]
[1755456838773,0.242,4507.2,4507.1,0.5812]
[1755456838972,1.1651,4507.2,4507.1,1.4433]
[1755456840681,0.6513,4507.2,4507.1,1.4433]
[1755456842370,3.6171,4507.4,4507.3,0.5812]
[1755456842574,4.1309,4507.4,4507.3,1.4433]
[1755456842870,4.3729,4507.4,4507.3,1.1839]
[1755456843069,4.3729,4507.4,4507.3,1.0177]
[1755456843271,4.3729,4507.4,4507.3,1.4433]
[1755456844277,3.2078,4507.4,4507.3,1.4433]
[1755456844777,3.4498,4507.4,4507.3,1.4433]
[1755456844976,0.242,4507.4,4507.3,1.4433]
[1755456845179,0.7554,4507.4,4507.3,1.4433]
[1755456845566,1.1651,4507.4,4507.3,21.8963]
[1755456850477,0.4015,4507.4,4507.3,21.8963]
[1755456852876,1.0052,4507.4,4507.3,21.8963]
[1755456853877,1.1651,4507.4,4507.3,21.8963]
[1755456867383,1.1651,4507.4,4507.3,21.8173]
[1755456869991,1.1651,4507.4,4507.3,21.8063]
[1755456870185,1.1651,4507.4,4507.3,21.5469]
[1755456870486,1.1651,4507.4,4505.7,1.10902]
[1755456870487,1.2146,4505.9,4505.8,0.2431]
[1755456870687,1.3622,4505.9,4505.8,20.7701]
[1755456870888,1.2146,4505.9,4505.8,21.0078]
[1755456871091,1.3622,4505.9,4505.8,20.7701]
[1755456871681,1.1014,4505.9,4505.0,0.2431]
[1755456871886,1.2146,4505.1,4505.0,1.4503]
[1755456872088,1.3622,4505.1,4505.0,0.2431]
[1755456872492,4.57,4505.1,4505.0,0.2431]
[1755456872687,0.6272,4505.0,4504.6,0.03534674]
[1755456872988,1.3622,4504.7,4504.6,0.03534674]
[1755456873190,0.71488412,4504.7,4501.3,3.2078]
[1755456873386,3.2078,4502.0,4500.0,0.5]
[1755456873589,0.0222,4501.4,4500.0,0.5]
[1755456873789,3.23,4500.5,4498.8,0.5124]
[1755456873989,3.2078,4499.8,4498.5,0.2431]
[1755456874191,3.2078,4499.8,4498.3,3.2078]
[1755456874493,3.2078,4498.4,4497.3,0.2431]
[1755456874685,3.2078,4497.8,4497.1,0.2471]
[1755456874886,37.866,4497.7,4494.2,3.2078]
[1755456875185,3.2078,4495.2,4494.4,0.2431]
[1755456875384,3.2078,4496.3,4494.8,0.2431]
[1755456875588,3.2078,4497.4,4495.8,0.2431]
[1755456875789,3.2078,4497.4,4496.3,0.44454]
[1755456875987,3.2078,4497.8,4496.9,0.2431]
[1755456876191,0.9057,4497.6,4496.3,0.10375154]
[1755456876387,0.8835,4497.6,4496.4,0.2431]
[1755456876591,0.26750238,4497.5,4496.5,0.2431]
[1755456876786,0.0222,4497.1,4496.5,0.2431]
[1755456876987,0.0222,4497.1,4445.4,8.969]
[1755456876988,0.5171,4496.4,4494.1,0.10013017]
[1755456877192,3.2078,4494.9,4494.3,0.2431]
[1755456877493,0.0222,4494.3,4491.0,0.1001]
[1755456877695,1.58002562,4498.7,4484.8,3.96517244]
[1755456877696,0.8835,4491.4,4489.5,0.10375154]
[1755456877900,0.8835,4491.4,4484.8,2.22843]
[1755456877901,0.2563,4489.6,4488.5,3.2078]
[1755456878194,0.2563,4489.6,4487.2,0.10375154]
[1755456878195,0.8835,4488.4,4487.2,0.10375154]
[1755456878389,3.2078,4487.5,4486.0,0.44556]
[1755456878593,3.2078,4487.5,4487.2,0.44544]
[1755456878798,0.6227,4488.0,4487.4,0.44542]
[1755456879095,0.2608,4487.4,4487.2,0.44544]
[1755456879292,3.2078,4487.5,4487.3,0.1576]
[1755456879592,3.2078,4488.8,4488.2,0.3785]
[1755456879793,3.19714831,4488.3,4487.3,2.41476]
[1755456879998,3.19714831,4488.3,4487.2,0.03876332]
[1755456879999,0.2608,4487.4,4487.2,0.03876332]
[1755456880196,3.2078,4487.5,4487.2,0.03876332]
[1755456880392,3.2078,4487.8,4486.8,0.44548]
[1755456880597,0.2563,4487.5,4486.4,3.2078]
[1755456880794,3.2078,4486.9,4485.9,3.2078]
[1755456880993,201.77394439,4495.4,4484.4,3.2078]
[1755456880994,3.2078,4486.2,4484.4,3.2078]
[1755456881194,3.2078,4485.6,4485.5,0.44561]
[1755456881397,0.03876483,4486.4,4484.4,32.009]
[1755456881398,0.03876483,4486.4,4485.8,0.3857]
[1755456881602,0.1,4488.2,4484.4,32.2521]
[1755456881603,0.1,4488.2,4486.2,0.4902]
[1755456881797,0.1,4488.2,4487.6,1.0782]
[1755456881995,0.1,4488.2,4488.1,0.6328]
[1755456882391,0.3664,4488.1,4487.4,32.009]
[1755456882596,3.2078,4487.6,4487.4,32.3947]
[1755456882792,0.1,4488.2,4487.6,0.4454]
[1755456882992,3.2078,4489.4,4488.5,0.0222]
[1755456883197,3.2078,4490.7,4490.3,0.44513]
[1755456883398,0.2563,4492.6,4490.8,0.8759]
[1755456883602,3.2078,4491.9,4491.7,0.0222]
[1755456883798,3.2078,4492.1,4491.4,0.6328]
[1755456884102,3.2078,4492.6,4491.5,0.655]
[1755456884302,3.2078,4494.2,4494.0,0.44477]
[1755456884501,0.2608,4494.8,4494.0,0.8759]
[1755456884502,3.2078,4494.8,4494.0,0.8759]
[1755456884809,3.2078,4494.2,4493.7,0.3857]
[1755456885013,0.3664,4494.0,4492.2,0.6328]
[1755456885201,0.2563,4493.5,4492.3,32.032]
[1755456885502,0.5171,4492.1,4490.4,3.2078]
[1755456885700,0.2563,4490.7,4489.8,3.2078]
[1755456885902,3.4641,4490.3,4489.2,0.8759]
[1755456886102,32.032,4493.2,4488.2,0.3857]
[1755456886103,0.6227,4489.6,4488.2,0.3857]
[1755456886303,3.2078,4488.4,4488.2,0.2471]
[1755456886501,3.2078,4488.4,4487.4,0.2471]
[1755456886702,3.2078,4488.4,4487.1,0.10028637]
[1755456886703,3.2078,4487.7,4487.1,0.10028637]
[1755456887004,3.2078,4487.6,4487.1,0.10028637]
[1755456887204,0.8835,4487.5,4487.1,0.10028637]
[1755456887403,3.2078,4487.6,4487.1,0.10028637]
[1755456887604,3.4551,4487.2,4487.1,0.10028637]
[1755456887805,4.0654,4487.2,4487.1,0.10028637]
[1755456888306,0.8576,4487.1,4485.3,32.2985]
[1755456888501,0.2473,4486.1,4485.3,32.2985]
[1755456888703,32.041,4489.1,4485.3,32.2985]
[1755456888704,3.2078,4485.8,4485.6,0.4456]
[1755456888901,3.2078,4485.8,4485.7,0.6497]
[1755456889202,3.2078,4486.5,4485.7,0.6497]
[1755456889408,0.44565,4485.2,4483.8,3.65357]
[1755456889613,0.2473,4485.1,4483.8,3.8575]
[1755456889810,0.2473,4484.3,4483.6,32.059]
[1755456890011,1.11385,4486.3,4482.8,0.44588]
[1755456890012,0.0045,4483.7,4482.8,3.1985]
[1755456890212,3.2078,4482.3,4479.8,0.17519643]
[1755456890516,3.2078,4481.7,4478.8,0.1772946]
[1755456890699,0.0176,4479.0,4477.0,3.2078]
[1755456890901,3.2078,4477.1,4473.0,3.2078]
[1755456891102,200.37,4477.4,4477.1,2.89732142]
[1755456891305,3.17245326,4473.4,4471.3,5.568]
[1755456891510,3.2078,4473.6,4470.7,3.2078]
[1755456891709,3.2301,4473.2,4470.7,3.2078]
[1755456891909,3.2301,4473.2,4470.8,3.2078]
[1755456891910,6.2078,4473.2,4470.8,3.2078]
[1755456892114,3.2078,4471.3,4470.1,4.24695485]
[1755456892410,32.159,4474.2,4470.2,0.2537]
[1755456892706,3.2078,4472.2,4471.3,0.2537]
[1755456893008,0.1,4474.2,4470.4,0.9034]
[1755456893205,0.1,4474.2,4471.4,0.2537]
[1755456893610,0.1,4474.2,4471.5,4.50445485]
[1755456893812,0.1,4474.2,4471.6,0.9034]
[1755456894012,0.1,4474.2,4448.7,6.3442759]
[1755456894013,0.1,4474.2,4468.1,0.2537]
[1755456894313,0.22022032,4477.6,4471.9,0.0223]
[1755456894517,0.30537181,4477.5,4474.1,0.2537]
[1755456894710,0.30537181,4477.4,4474.3,0.3922]
[1755456894909,0.50035187,4481.2,4470.0,0.2637]
[1755456894910,35.40344527,4477.3,4470.0,0.2637]
[1755456895102,0.30544527,4477.2,4470.4,0.44711]
[1755456895303,0.3048364,4477.1,4472.7,0.2537]
[1755456895510,0.3048364,4477.0,4473.1,0.2537]
[1755456895710,0.3048364,4476.9,4475.1,0.2537]
[1755456895914,0.27815637,4481.2,4470.7,2.85966558]
[1755456895915,32.413,4476.8,4470.7,2.85966558]
[1755456896217,2.57656771,4479.5,4470.9,0.2537]
[1755456896401,0.30443753,4479.4,4473.8,0.5112]
[1755456896703,0.30443753,4479.3,4474.2,0.276]
[1755456896905,0.30443753,4479.2,4474.8,0.0223]
[1755456897108,0.30443753,4479.1,4474.5,0.331]
[1755456897314,0.0777,4478.9,4474.7,0.44669]
[1755456897510,0.243,4481.1,4473.3,32.124]
[1755456897511,0.0777,4478.7,4473.3,32.124]
[1755456897809,0.0777,4478.5,4473.7,0.6497]
[1755456898012,0.30443753,4478.6,4474.0,0.5112]
[1755456898013,0.0025,4478.2,4474.0,0.5112]
[1755456898214,0.0777,4478.0,4473.2,0.91405485]
[1755456898411,0.0777,4478.0,4472.3,0.2537]
[1755456898714,0.0777,4477.8,4472.2,0.91405485]
[1755456898916,0.0777,4477.6,4471.8,0.2537]
[1755456899111,0.32978077,4477.7,4470.0,0.45715]
[1755456899112,0.0874,4477.2,4470.1,0.2537]
[1755456899308,0.0777,4477.0,4473.1,0.10060025]
[1755456899620,0.0106,4477.0,4470.4,0.2537]
[1755456899909,0.0898,4476.8,4470.5,0.91405485]
[1755456900119,200.867,4476.2,4473.6,2.7572]
[1755456900304,200.867,4476.2,4468.6,2.45288643]
[1755456900305,0.0777,4470.7,4468.6,2.45288643]
[1755456900504,200.867,4471.9,4466.2,0.3922]
[1755456900708,4.82531809,4476.1,4466.1,0.35825792]
[1755456900709,32.138,4471.8,4466.9,0.2575]
[1755456900907,32.138,4471.8,4466.1,0.10075792]
[1755456900908,2.84531296,4471.8,4467.4,0.2537]
[1755456901219,2.40491717,4471.7,4466.8,0.2537]
[1755456901409,3.2078,4469.1,4467.2,3.2078]
[1755456901711,32.138,4472.0,4466.1,0.10075792]
[1755456901712,201.041,4469.0,4466.1,0.10075792]
[1755456902014,32.166,4467.8,4461.1,0.2537]
[1755456902214,0.002,4467.7,4461.1,0.2537]
[1755456902419,3.03548533,4467.7,4461.3,0.3922]
[1755456902609,57.95,4467.6,4462.0,0.5112]
[1755456902807,32.166,4467.6,4463.7,0.6683]
[1755456903009,2.86398075,4467.6,4464.6,0.2575]
[1755456903209,32.166,4469.0,4465.1,0.2575]
[1755456903419,0.44747,4467.0,4466.1,0.6497]
[1755456903623,0.44728,4468.9,4465.3,0.44762]
[1755456903814,0.03877541,4466.1,4465.8,0.2537]
[1755456904013,0.1,4467.2,4466.2,0.6459]
[1755456904308,0.1,4467.2,4463.3,2.93079966]
[1755456904309,0.1,4467.2,4465.9,0.2537]
[1755456904510,3.2078,4466.0,4463.2,0.5112]
[1755456904813,3.2078,4464.7,4463.2,0.2537]
[1755456905023,32.166,4465.9,4462.3,2.8634849]
[1755456905321,0.0388,4465.6,4460.9,0.2537]
[1755456905815,0.0388,4465.4,4461.4,0.6497]
[1755456906016,0.0388,4465.7,4461.9,0.3922]
[1755456906213,2.97099414,4465.3,4462.0,0.2537]
[1755456906421,2.97099414,4465.7,4459.1,0.10091609]
[1755456906422,0.0388,4465.2,4461.1,0.9034]
[1755456906612,0.0388,4465.0,4461.1,0.2537]
[1755456906809,0.0388,4465.0,4461.2,0.6497]
[1755456907015,0.0388,4464.8,4460.3,0.2575]
[1755456907212,3.2078,4461.7,4459.8,3.2078]
[1755456907419,3.2078,4460.2,4459.1,3.56241609]
[1755456907625,3.2078,4459.3,4459.1,0.10091609]
[1755456907921,0.0282,4459.2,4459.1,0.10091609]
[1755456908119,0.0282,4459.2,4456.4,3.2078]
[1755456908120,3.0,4459.2,4456.3,3.2078]
[1755456908312,3.0,4459.2,4455.8,3.2078]
[1755456908313,0.0224,4457.6,4455.8,3.2078]
[1755456908512,0.0224,4457.4,4453.6,3.2078]
[1755456908719,32.215,4457.5,4453.4,2.90648854]
[1755456908720,40.268,4457.3,4453.4,2.90648854]
[1755456908926,42.62045495,4457.3,4453.3,2.90648854]
[1755456909222,32.215,4453.4,4449.1,0.2537]
[1755456909412,40.268,4453.3,4447.7,0.2537]
[1755456909611,40.268,4453.3,4447.6,0.2575]
[1755456909810,40.268,4453.3,4448.4,0.2537]
[1755456910013,38.06262363,4453.3,4450.1,0.9034]
[1755456910217,32.215,4453.4,4451.2,0.2537]
[1755456910418,201.344,4456.6,4451.2,0.2537]
[1755456910419,32.215,4454.8,4451.2,0.2537]
[1755456910624,0.1,4453.2,4451.2,0.2537]
[1755456910818,0.1,4453.2,4452.3,0.2537]
[1755456911116,32.265,4456.1,4453.0,0.2537]
[1755456911320,32.265,4456.1,4453.2,0.2537]
[1755456911527,2.96451625,4454.6,4453.2,0.2537]
[1755456911725,0.44892,4452.4,4449.5,32.265]
[1755456912018,1.12136,4456.2,4449.5,32.265]
[1755456912215,0.3545,4456.8,4450.6,0.44909]
[1755456912416,2.9836177,4456.1,4450.2,32.265]
[1755456912616,32.8668,4456.0,4449.3,32.265]
[1755456912818,34.84986477,4456.0,4452.1,0.10107476]
[1755456913021,0.2558,4452.1,4444.6,0.4497]
[1755456913218,0.3545,4450.3,4442.7,3.96517244]
[1755456913420,0.3545,4450.1,4444.9,0.44966]
[1755456913616,34.83284357,4452.0,4445.4,0.6459]
[1755456913822,34.83284357,4452.0,4443.8,4.00051918]
[1755456913823,5.32782897,4450.0,4443.8,4.00051918]
[1755456914022,0.6018,4449.8,4443.8,4.00051918]
[1755456914226,0.3545,4449.7,4443.5,4.67184335]
[1755456914521,0.08456095,4449.7,4443.7,0.2575]
[1755456914735,0.2473,4451.3,4444.4,0.2575]
[1755456915027,0.6018,4455.1,4443.7,0.4635]
[1755456915223,0.2558,4453.0,4443.8,0.2575]
[1755456915435,0.2558,4451.8,4444.6,0.2575]
[1755456915724,0.8576,4451.6,4444.0,0.9034]
[1755456915927,32.286,4451.7,4445.0,0.2575]
[1755456915928,0.3545,4451.2,4445.0,0.2575]
[1755456916225,2.42135124,4451.5,4444.8,0.3922]
[1755456916424,0.8576,4451.0,4445.2,0.6497]
[1755456916630,2.32498457,4451.1,4445.9,0.2575]
[1755456916927,201.79,4454.4,4442.8,0.2537]
[1755456916928,0.8576,4450.7,4442.8,0.2537]
[1755456917123,2.42490424,4450.9,4444.6,0.2761]
[1755456917318,32.314,4452.3,4444.4,1.09562]
[1755456917517,0.3545,4452.0,4445.1,0.3883]
[1755456917827,0.67373962,4451.9,4445.2,32.828]
[1755456918022,0.33278087,4451.8,4447.7,0.259]
[1755456918322,0.2575,4451.5,4447.9,0.259]
[1755456918524,0.33278087,4451.7,4445.1,0.10123393]
[1755456918525,0.3638,4450.8,4445.1,0.10123393]
[1755456918722,0.9676,4448.9,4445.1,0.10123393]
[1755456918924,0.3409,4446.4,4441.0,0.0038701]
[1755456919119,0.45026,4439.1,4439.0,6.67554488]
[1755456919325,0.45035,4438.2,4435.6,0.3399]
[1755456919518,58.489,4439.1,4433.5,11.10248284]
[1755456919519,1.12586,4438.3,4433.5,11.10248284]
[1755456919929,2.43410832,4438.2,4433.5,11.10248284]
[1755456920129,2.43410832,4438.2,4433.9,2.2533]
[1755456920428,2.4207787,4439.0,4434.0,5.4753759]
[1755456920637,58.489,4439.1,4433.5,11.10248284]
[1755456920837,2.42673619,4438.1,4433.6,5.4753759]
[1755456921034,32.342,4438.0,4433.6,5.8152759]
[1755456921220,32.342,4438.0,4431.0,0.45496735]
[1755456921221,72.77,4438.0,4433.7,5.4753759]
[1755456921428,2.42673619,4439.1,4433.9,0.5989]
[1755456921725,2.42673619,4439.1,4432.7,32.342]
[1755456921726,2.44431905,4437.9,4434.0,5.4582759]
[1755456921923,2.44431905,4437.9,4434.2,0.9648]
[1755456922127,2.44431905,4439.1,4432.5,0.3659]
[1755456922328,2.44431905,4439.1,4431.2,5.4582759]
[1755456922329,2.44431905,4439.1,4433.8,0.6249]
[1755456922630,0.1,4439.2,4435.7,0.259]
[1755456922833,0.1,4439.2,4432.6,2.87224138]
[1755456923027,2.47589368,4439.0,4432.7,5.4582759]
[1755456923330,0.1,4439.2,4435.1,0.2815]
[1755456923522,26.9837241,4440.9,4428.1,202.374]
[1755456923726,32.379,4437.0,4425.2,1.12917]
[1755456923925,25.953,4436.9,4432.6,0.3399]
[1755456924127,28.31496119,4436.9,4432.2,0.5989]
[1755456924331,28.31496119,4436.9,4432.2,0.3399]
[1755456924332,2.36196119,4436.9,4432.2,0.3399]
[1755456924537,32.379,4438.5,4433.0,0.3399]
[1755456924734,59.85,4438.4,4438.1,0.1013936]
[1755456924933,27.471,4438.3,4434.0,0.259]
[1755456925142,27.471,4438.3,4433.1,0.259]
[1755456925436,2.42898097,4438.2,4433.7,0.6214]
[1755456925638,32.379,4440.2,4435.3,0.259]
[1755456926141,42.94555428,4440.1,4434.0,0.259]
[1755456926336,32.406,4437.9,4434.1,0.3659]
[1755456926542,32.406,4437.9,4434.3,2.2533]
[1755456926736,2.43755428,4440.1,4434.1,0.3659]
[1755456926737,2.45864043,4437.8,4434.1,0.3659]
[1755456926936,3.2078,4434.2,4432.2,0.6249]
[1755456927137,2.4051,4434.4,4434.3,2.2533]
[1755456927339,0.45064,4435.4,4433.7,3.2078]
[1755456927538,32.406,4435.3,4432.7,3.2078]
[1755456927730,0.3409,4434.7,4431.5,3.2078]
[1755456927931,32.7698,4435.3,4427.5,0.5]
[1755456927932,3.2078,4434.1,4428.4,0.0225]
[1755456928136,3.2078,4434.1,4427.5,0.5]
[1755456928137,3.2078,4433.0,4431.0,0.02638735]
[1755456928334,3.2078,4433.9,4431.1,0.12405377]
[1755456928542,3.2078,4433.9,4431.1,0.10155377]
[1755456928742,3.2078,4432.4,4431.1,0.10155377]
[1755456928937,3.2078,4431.2,4428.6,0.03534674]
[1755456929235,3.2078,4432.6,4430.1,3.2078]
[1755456929436,202.684,4438.8,4431.4,3.2078]
[1755456929437,3.2078,4434.6,4431.4,3.2078]
[1755456929636,3.2078,4434.6,4429.3,32.429]
[1755456929637,3.2078,4436.5,4434.0,3.1078]
[1755456929838,3.4707,4439.4,4436.2,0.0225]
[1755456930034,3.4707,4439.4,4433.2,1.12714]
[1755456930035,0.2629,4442.2,4436.3,39.0008]
[1755456930235,3.2078,4441.8,4439.4,0.0225]
[1755456930433,0.29463365,4441.7,4438.6,3.2078]
[1755456930639,0.29463365,4441.7,4438.3,3.2078]
[1755456930640,3.2078,4440.3,4438.3,3.2078]
[1755456930834,0.7047,4438.6,4437.1,3.2078]
[1755456931036,3.2078,4437.2,4435.1,3.2078]
[1755456931238,0.2629,4436.3,4433.8,3.2078]
[1755456931437,3.2078,4435.9,4433.1,3.2078]
[1755456931639,0.6038,4435.8,4432.6,3.2078]
[1755456931844,3.2078,4435.5,4434.1,3.2078]
[1755456932043,0.6267,4435.4,4433.2,3.2078]
[1755456932342,32.429,4436.8,4433.3,0.1014]
[1755456932343,3.2078,4436.3,4433.3,0.1014]
[1755456932538,0.70986833,4436.2,4435.4,0.0225]
[1755456932740,2.77612215,4438.1,4436.1,3.2078]
[1755456932940,3.2078,4436.3,4435.5,2.96124313]
[1755456933140,1.83312059,4435.6,4435.5,2.96124313]
[1755456933348,3.2078,4435.7,4434.0,3.2078]
[1755456933544,3.2078,4435.5,4434.0,3.2078]
[1755456933741,0.3409,4437.2,4434.6,3.2078]
[1755456933742,3.2078,4436.4,4434.6,3.2078]
[1755456933941,3.2078,4438.8,4436.0,3.65836]
[1755456934147,3.2078,4437.7,4435.8,3.2078]
[1755456934340,3.2078,4437.0,4435.4,3.2078]
[1755456934550,3.2078,4436.1,4434.6,3.2078]
[1755456934850,32.445,4436.2,4434.4,3.2078]
[1755456935147,3.2078,4435.9,4434.0,3.2078]
[1755456935352,0.3409,4436.9,4433.8,3.2078]
[1755456935538,0.45055,4436.3,4435.2,3.2303]
[1755456935737,3.2078,4437.7,4434.9,0.0225]
[1755456935948,3.2078,4437.7,4434.1,2.92698186]
[1755456935949,3.2078,4437.7,4435.8,0.0225]
[1755456936140,3.2078,4437.7,4435.3,2.92698186]
[1755456936452,0.9901,4437.2,4435.0,2.92698186]
[1755456936650,3.3078,4437.6,4430.0,32.445]
[1755456936651,3.2078,4435.2,4432.8,3.2078]
[1755456936848,3.2078,4433.0,4431.8,3.2078]
[1755456937146,3.2078,4433.3,4431.7,3.2078]
[1755456937350,3.2078,4433.5,4431.8,3.2078]
[1755456937549,3.2078,4432.6,4431.3,3.2078]
[1755456937749,0.0225,4434.7,4432.5,3.2078]
[1755456937951,3.2078,4435.3,4434.3,3.2078]
[1755456938249,3.2078,4435.3,4430.6,32.453]
[1755456938250,3.2078,4435.3,4433.1,3.2078]
[1755456938447,3.2078,4435.0,4433.1,3.2078]
[1755456938648,3.2078,4434.9,4433.1,3.2078]
[1755456938844,3.2078,4435.6,4433.6,3.2303]
[1755456939039,3.2078,4436.9,4435.5,3.2078]
[1755456939240,3.2078,4435.6,4433.7,6.14461612]
[1755456939440,0.0225,4434.4,4433.7,2.93681612]
[1755456939642,0.2629,4434.5,4433.3,3.2078]
[1755456939841,0.2854,4435.6,4433.6,3.2078]
[1755456940048,0.0225,4434.1,4432.6,3.2078]
[1755456940247,3.2078,4435.2,4432.7,0.0225]
[1755456940447,3.3078,4435.2,4433.2,3.2078]
[1755456940645,3.2078,4434.8,4433.2,3.2078]
[1755456942049,3.2078,4435.2,4433.3,3.0]
[1755456942347,3.2303,4436.1,4434.2,3.2078]
[1755456942541,0.0225,4435.9,4433.2,3.2078]
[1755456942745,3.2078,4435.5,4433.2,3.2078]
[1755456942944,3.2078,4435.5,4435.1,0.45065]
[1755456943144,0.2629,4437.1,4435.4,3.2078]
[1755456943350,0.2629,4438.2,4437.0,3.2078]
[1755456943551,3.2078,4439.4,4437.6,3.2078]
[1755456943853,32.461,4441.4,4435.4,1.12657]
[1755456943854,1.12548,4439.8,4438.3,3.2078]
[1755456944051,3.2078,4440.4,4438.8,3.2078]
[1755456944052,0.55024,4439.2,4438.8,3.2078]
[1755456944353,0.55024,4439.2,4438.3,3.2078]
[1755456944650,0.1,4439.2,4438.8,3.2078]
[1755456944846,3.2078,4440.4,4438.9,0.47277]
[1755456945049,3.2078,4441.3,4439.8,3.2078]
[1755456945249,3.2078,4441.8,4440.8,3.2078]
[1755456945749,3.2078,4443.5,4441.7,3.2078]
[1755456945952,3.2078,4443.5,4442.5,3.2078]
[1755456946253,0.2629,4443.6,4442.3,3.2078]
[1755456946452,3.2078,4444.8,4443.6,0.0225]
[1755456946658,3.4078,4446.0,4444.6,3.2078]
[1755456946844,3.2078,4446.5,4445.1,3.2078]
[1755456947044,3.2078,4446.5,4442.3,32.464]
[1755456947045,3.4078,4446.1,4444.3,3.2078]
[1755456947349,0.2629,4447.3,4446.1,0.3399]
[1755456947551,3.4078,4446.1,4445.7,3.2078]
[1755456947751,3.4078,4446.1,4443.4,0.44981]
[1755456947752,0.3298,4445.1,4442.7,3.7982]
[1755456948054,0.0224,4445.8,4444.8,3.2078]
[1755456948055,0.3298,4445.8,4444.8,3.2078]
[1755456948250,3.4078,4445.7,4444.9,3.2078]
[1755456948445,0.0224,4446.0,4443.6,3.2078]
[1755456948645,0.0224,4446.0,4443.2,0.1372]
[1755456948646,3.4078,4445.9,4444.2,3.2078]
[1755456948843,0.1,4446.2,4444.7,3.2078]
[1755456949044,0.1,4446.2,4445.6,3.2078]
[1755456949245,0.9032,4447.9,4446.1,3.7982]
[1755456949246,0.4019,4447.9,4446.1,3.7982]
[1755456949451,3.7376,4447.8,4446.6,3.2078]
[1755456949651,0.70986833,4447.2,4446.8,3.2078]
[1755456949850,3.2078,4448.8,4446.9,0.0224]
[1755456950054,3.2078,4448.8,4448.7,3.2078]
[1755456950055,3.4078,4448.8,4448.7,3.2078]
[1755456950255,0.0224,4448.6,4447.2,0.5011]
[1755456950556,3.2078,4448.1,4447.0,0.0893]
[1755456950959,0.3298,4447.0,4445.2,3.2078]
[1755456951159,0.0224,4446.5,4445.2,3.2078]
[1755456951357,3.2078,4445.4,4443.7,0.0893]
[1755456951657,3.2078,4445.0,4443.7,0.0225]